Workbook

Sheet Project Budget
B1: PROJECT BUDGET TEMPLATE
H10: BUDGET | I10: ACTUAL | J10: UNDER/OVER
H11: =H37 -> 9700 | I11: =I37 -> 11500 | J11: =H11-I11 -> -1800
C13: LABOR | E13: MATERIALS | G13: FIXED COST | H13: BUDGET | I13: ACTUAL | J13: UNDER/OVER
B14: TASK | C14: HRS | D14: RATE | E14: UNITS | F14: $/UNIT
B15: CATEGORY
B16: Task | C16: 10 | D16: 15 | E16: 50 | F16: 10 | G16: 200 | H16: =C16*D16+E16*F16+G16 -> 850 | I16: 800 | J16: =I16-H16 -> -50
B17: Task | H17: =C17*D17+E17*F17+G17 -> 0 | J17: =I17-H17 -> 0
B18: Task | H18: 0 | J18: =I18-H18 -> 0
B19: Task | H19: 0 | J19: =I19-H19 -> 0
B20: Task | H20: 0 | J20: =I20-H20 -> 0
H21: =SUM(H16:H20) -> 850 | I21: =SUM(I16:I20) -> 800
B22: CATEGORY
B23: Task | C23: 320 | D23: 25 | H23: =C23*D23+E23*F23+G23 -> 8000 | I23: 10000 | J23: =I23-H23 -> 2000
B24: Task | E24: 30 | F24: 25 | H24: =C24*D24+E24*F24+G24 -> 750 | I24: 600 | J24: =I24-H24 -> -150
B25: Task | G25: 100 | H25: 100 | I25: 100 | J25: =I25-H25 -> 0
B26: Task | H26: 0 | J26: =I26-H26 -> 0
B27: Task | H27: =C27*D27+E27*F27+G27 -> 0 | J27: =I27-H27 -> 0
H28: =SUM(H23:H27) -> 8850 | I28: =SUM(I23:I27) -> 10700
B29: CATEGORY
B30: Task | H30: =C30*D30+E30*F30+G30 -> 0 | J30: =I30-H30 -> 0
B31: Task | H31: =C31*D31+E31*F31+G31 -> 0 | J31: =I31-H31 -> 0
B32: Task | H32: 0 | J32: =I32-H32 -> 0
B33: Task | H33: 0 | J33: 0
B34: Task | H34: 0 | J34: 0
H35: =SUM(H30:H34) -> 0 | I35: =SUM(I30:I34) -> 0
B37: TOTAL | H37: =SUM(H21,H28,H35) -> 9700 | I37: =SUM(I21,I28,I35) -> 11500
B39: CLICK HERE TO CREATE PROJECT BUDGET TEMPLATES WITH SMARTSHEET
